bitfinex/quotes_BTCUSD_20240823
["timestamp","ask_amount","ask_price","bid_price","bid_amount"]
[1724404006137,2.0220037,61426.0,61425.0,0.0009064]
[1724404008015,2.14381218,61426.0,61425.0,0.0009064]
[1724404008364,2.14381199,61426.0,61425.0,0.0009064]
[1724404009472,2.0220037,61426.0,61425.0,0.0009064]
[1724404016148,1.90813672,61426.0,61425.0,0.0009064]
[1724404020597,1.90813672,61426.0,61425.0,0.2338064]
[1724404027000,1.57854172,61426.0,61425.0,0.2338064]
[1724404027406,1.90413672,61426.0,61425.0,0.2338064]
[1724404028041,1.57854172,61426.0,61425.0,0.2338064]
[1724404028464,1.41353874,61426.0,61425.0,0.2338064]
[1724404029518,0.03135674,61426.0,61425.0,0.3772064]
[1724404029722,0.03135674,61426.0,61425.0,1.02960938]
[1724404029907,0.03135674,61426.0,61425.0,1.36268876]
[1724404030461,0.03135674,61426.0,61425.0,1.68828876]
[1724404030662,0.02835674,61426.0,61425.0,1.68828876]
[1724404030863,0.02635674,61426.0,61425.0,1.69828876]
[1724404031403,0.02635674,61426.0,61425.0,1.68828876]
[1724404031601,0.02635674,61426.0,61425.0,1.69828876]
[1724404032299,0.02635674,61426.0,61425.0,1.69728876]
[1724404032518,0.02635674,61426.0,61425.0,1.68828876]
[1724404032720,0.02635674,61426.0,61425.0,1.70228876]
[1724404033112,0.02635674,61426.0,61425.0,1.37668876]
[1724404033784,0.02635674,61426.0,61425.0,1.39068876]
[1724404037909,0.02635674,61426.0,61425.0,1.39068876]
[1724404038646,0.02635674,61426.0,61425.0,1.06508876]
[1724404040869,0.02635674,61426.0,61425.0,1.13032276]
[1724404044081,0.02635674,61426.0,61425.0,1.45592276]
[1724404044405,0.02635674,61426.0,61425.0,1.13032276]
[1724404045112,0.02635674,61426.0,61425.0,1.45592276]
[1724404050771,0.02635674,61426.0,61425.0,1.22302276]
[1724404053276,0.02635674,61426.0,61425.0,1.14352276]
[1724404054992,0.02635674,61426.0,61425.0,0.75402276]
[1724404055407,0.02635674,61426.0,61425.0,1.07962276]
[1724404057663,0.10735674,61426.0,61425.0,1.07962276]
[1724404058033,0.02635674,61426.0,61425.0,1.07962276]
[1724404058220,0.02635674,61426.0,61425.0,0.75402276]
[1724404060034,0.02635674,61426.0,61425.0,1.07962276]
[1724404065107,0.01642074,61430.0,61427.0,0.162794]
[1724404065339,0.01642074,61430.0,61428.0,0.32679398]
[1724404065579,0.01642074,61430.0,61428.0,0.33361883]
[1724404066782,0.01642074,61430.0,61428.0,0.17082783]
[1724404067210,0.162789,61429.0,61428.0,0.02782485]
[1724404067973,0.162789,61429.0,61428.0,0.01782485]
[1724404069292,0.162789,61429.0,61428.0,0.00682485]
[1724404069679,0.162789,61429.0,61428.0,0.012]
[1724404069875,0.162789,61429.0,61428.0,0.01882496]
[1724404070349,0.162789,61429.0,61428.0,0.02982496]
[1724404070704,0.162789,61429.0,61428.0,0.03073136]
[1724404076477,0.22875863,61430.0,61428.0,0.03073136]
[1724404077321,0.22875863,61430.0,61428.0,0.01873136]
[1724404077715,0.22875863,61430.0,61428.0,0.02973136]
[1724404077930,0.22875863,61430.0,61428.0,0.01873136]
[1724404078374,0.01724474,61430.0,61428.0,0.02873136]
[1724404078624,0.18003174,61430.0,61428.0,0.02873136]
[1724404082044,0.162789,61429.0,61428.0,0.02873136]
[1724404082309,0.243889,61429.0,61428.0,0.02873136]
[1724404082574,0.97468394,61429.0,61428.0,0.02873136]
[1724404082816,1.36286294,61429.0,61428.0,0.02873136]
[1724404083073,1.48504486,61429.0,61428.0,0.0219064]
[1724404083555,1.48504486,61429.0,61428.0,0.0109064]
[1724404084071,1.48504486,61429.0,61428.0,0.0229064]
[1724404084270,1.36286294,61429.0,61428.0,0.0229064]
[1724404084604,1.36286294,61429.0,61428.0,0.0129064]
[1724404084874,1.36286294,61429.0,61428.0,0.0239064]
[1724404085197,1.36286294,61429.0,61428.0,0.0009064]
[1724404085401,1.46056597,61429.0,61428.0,0.0029064]
[1724404085945,1.46056597,61429.0,61428.0,0.0059064]
[1724404086135,0.13942666,61430.0,61429.0,0.162789]
[1724404086136,0.01724474,61430.0,61429.0,0.162789]
[1724404086273,0.01724474,61430.0,61429.0,1.05684998]
[1724404086475,0.01724474,61430.0,61429.0,1.06353854]
[1724404086711,0.01724474,61430.0,61429.0,1.38911754]
[1724404087086,0.01724474,61430.0,61429.0,1.45251754]
[1724404087663,0.01724474,61430.0,61429.0,1.47551754]
[1724404088486,0.01724474,61430.0,61429.0,1.48551754]
[1724404089157,0.01724474,61430.0,61429.0,1.49651754]
[1724404089732,0.01724474,61430.0,61429.0,1.51436115]
[1724404093953,0.01724474,61430.0,61429.0,1.49651754]
[1724404094154,0.01724474,61430.0,61429.0,1.51436148]
[1724404097678,0.01724474,61430.0,61429.0,1.49651754]
[1724404098042,0.01724474,61430.0,61429.0,1.49905154]
[1724404098742,0.01724474,61430.0,61429.0,1.17347254]
[1724404099398,0.01724474,61430.0,61429.0,1.03117254]
[1724404100156,0.65240374,61430.0,61429.0,0.21722554]
[1724404100354,0.65240374,61430.0,61429.0,0.02768856]
[1724404100835,0.65240374,61430.0,61429.0,0.021]
[1724404101060,0.97797674,61430.0,61429.0,0.021]
[1724404101266,1.53899112,61430.0,61429.0,0.021]
[1724404101474,1.68781706,61430.0,61429.0,0.021]
[1724404101680,1.40354974,61430.0,61429.0,0.021]
[1724404101887,1.40354974,61430.0,61429.0,0.011]
[1724404102091,1.40354974,61430.0,61429.0,0.013]
[1724404102516,1.40354974,61430.0,61429.0,0.011]
[1724404102932,1.282926,61429.0,61428.0,0.0009064]
[1724404103064,1.382926,61429.0,61428.0,0.0009064]
[1724404105324,1.50592038,61429.0,61428.0,0.0009064]
[1724404106344,1.383926,61429.0,61428.0,0.0009064]
[1724404106541,1.50592038,61429.0,61428.0,0.0009064]
[1724404106700,1.50892038,61429.0,61428.0,0.0009064]
[1724404107110,1.50889694,61429.0,61428.0,0.0009064]
[1724404107312,1.386926,61429.0,61428.0,0.0009064]
[1724404108317,2.06431519,61429.0,61428.0,0.0009064]
[1724404108501,2.23031817,61429.0,61428.0,0.0009064]
[1724404108706,2.08545329,61429.0,61428.0,0.0009064]
[1724404109112,2.23175129,61429.0,61428.0,0.0009064]
[1724404109647,2.41003229,61429.0,61428.0,0.0009064]
[1724404110049,2.41403229,61429.0,61428.0,0.0019064]
[1724404110228,2.72426527,61429.0,61428.0,0.0019064]
[1724404110791,2.72226527,61429.0,61428.0,0.0019064]
[1724404110992,2.55828649,61429.0,61428.0,0.0019064]
[1724404111229,2.41403229,61429.0,61428.0,0.0029064]
[1724404111442,2.55828649,61429.0,61428.0,0.0019064]
[1724404111861,2.56128649,61429.0,61428.0,0.0029064]
[1724404112165,2.55828649,61429.0,61428.0,0.0019064]
[1724404112352,2.08645329,61429.0,61428.0,0.0019064]
[1724404112560,2.16023386,61429.0,61428.0,0.0029064]
[1724404112770,2.08645329,61429.0,61428.0,0.0029064]
[1724404113112,2.08445329,61429.0,61428.0,0.0019064]
[1724404113336,2.08245329,61429.0,61428.0,0.0009064]
[1724404113551,2.08445329,61429.0,61428.0,0.0019064]
[1724404113877,2.08645329,61429.0,61428.0,0.0019064]
[1724404114079,2.08445329,61429.0,61428.0,0.0009064]
[1724404114421,2.08545329,61429.0,61428.0,0.0019064]
[1724404114660,2.08645329,61429.0,61428.0,0.0019064]
[1724404114852,2.08945329,61429.0,61428.0,0.0029064]
[1724404115269,2.08645329,61429.0,61428.0,0.0029064]
[1724404115473,2.08945329,61429.0,61428.0,0.0029064]
[1724404116127,2.21120948,61429.0,61428.0,0.0029064]
[1724404116347,2.21119565,61429.0,61428.0,0.0029064]
[1724404116548,2.08945329,61429.0,61428.0,0.0029064]
[1724404117090,2.08545329,61429.0,61428.0,0.0029064]
[1724404117290,2.08745329,61429.0,61428.0,0.0029064]
[1724404117605,2.08945329,61429.0,61428.0,0.0029064]
[1724404118275,2.08645329,61429.0,61428.0,0.0029064]
[1724404118478,1.9671395,61429.0,61428.0,0.0029064]
[1724404118970,1.9701395,61429.0,61428.0,0.0029064]
[1724404119370,2.09184097,61429.0,61428.0,0.0029064]
[1724404120366,2.08884097,61429.0,61428.0,0.0029064]
[1724404120568,2.09184097,61429.0,61428.0,0.0029064]
[1724404121483,2.09181875,61429.0,61428.0,0.0029064]
[1724404122089,2.14671192,61429.0,61428.0,0.0029064]
[1724404122497,2.47229092,61429.0,61428.0,0.0029064]
[1724404122695,2.35061167,61429.0,61428.0,0.0029064]
[1724404125246,2.37361167,61429.0,61428.0,0.0029064]
[1724404125447,1.795772,61426.0,61425.0,0.0009064]
[1724404125649,2.56516942,61426.0,61425.0,0.0009064]
[1724404126082,2.59071153,61426.0,61425.0,0.0009064]
[1724404126351,2.4690781,61426.0,61425.0,0.0009064]
[1724404126904,2.4710781,61426.0,61425.0,0.0019064]
[1724404128241,2.4750781,61426.0,61425.0,0.0029064]
[1724404130786,2.4720781,61426.0,61425.0,0.0029064]
[1724404131046,2.4750781,61426.0,61425.0,0.0029064]
[1724404131673,2.8006731,61426.0,61425.0,4e-07]
[1724404131836,2.8236731,61426.0,61425.0,4e-07]
[1724404133206,2.8206731,61426.0,61425.0,4e-07]
[1724404133402,2.8236731,61426.0,61425.0,4e-07]
[1724404134804,1.282276,61410.0,61409.0,0.0009064]
[1724404135007,1.52596121,61410.0,61409.0,0.0009064]
[1724404135438,1.85264021,61410.0,61409.0,0.0009064]
[1724404135639,1.88018462,61410.0,61409.0,0.0009064]
[1724404135768,1.98018462,61410.0,61409.0,0.0009064]
[1724404135970,2.1441634,61410.0,61409.0,0.0009064]
[1724404136181,2.1461634,61410.0,61409.0,0.0009064]
[1724404136598,2.1471634,61410.0,61409.0,0.0009064]
[1724404136795,2.1431634,61410.0,61409.0,0.0009064]
[1724404137022,2.1461634,61410.0,61409.0,0.0009064]
[1724404137218,2.1511634,61410.0,61409.0,0.0019064]
[1724404138199,2.1631634,61410.0,61409.0,0.0029064]
[1724404138858,2.16599615,61410.0,61409.0,0.0019064]
[1724404139065,2.17599615,61410.0,61409.0,0.0029064]
[1724404140332,2.22465321,61410.0,61409.0,0.0029064]
[1724404142226,2.24898174,61410.0,61409.0,0.0029064]
[1724404143147,2.17599615,61410.0,61409.0,0.0027864]
[1724404144325,2.27331027,61410.0,61409.0,0.0027864]
[1724404144540,2.17599615,61410.0,61409.0,0.0027864]
[1724404146656,2.64764634,61410.0,61409.0,0.0027864]
[1724404146859,1.613271,61401.0,61400.0,1.0009064]
[1724404147064,1.85895621,61401.0,61400.0,1.0009064]
[1724404147268,2.28468321,61401.0,61400.0,1.00986825]
[1724404147682,2.31023632,61401.0,61400.0,1.00986825]
[1724404147890,2.63874463,61401.0,61400.0,1.00986825]
[1724404148093,2.4742151,61401.0,61400.0,1.00986825]
[1724404148304,2.49977071,61401.0,61400.0,1.00986825]
[1724404149181,2.51377071,61401.0,61400.0,1.00986825]
[1724404149383,2.49977071,61401.0,61400.0,1.00986825]
[1724404149587,2.51377071,61401.0,61400.0,1.00986825]
[1724404149921,2.53576952,61401.0,61400.0,1.00986825]
[1724404150169,2.52176952,61401.0,61400.0,1.00986825]
[1724404150341,2.68188974,61401.0,61400.0,1.00986825]
[1724404150543,2.53576952,61401.0,61400.0,1.00986825]
[1724404150988,1.96638151,61401.0,61400.0,1.00986825]
[1724404151216,2.04606374,61401.0,61400.0,1.00986825]
[1724404154727,2.19214381,61401.0,61400.0,1.00986825]
[1724404155421,2.04606374,61401.0,61400.0,1.00986825]
[1724404155759,2.19214381,61401.0,61400.0,1.00986825]
[1724404155959,2.35612259,61401.0,61400.0,1.00986825]
[1724404156206,2.21004252,61401.0,61400.0,1.00986825]
[1724404157885,2.53576952,61401.0,61400.0,1.00986825]
[1724404158337,2.53576952,61401.0,61400.0,1.00982825]
[1724404163103,2.55876952,61401.0,61400.0,1.00982825]
[1724404164111,2.70473128,61401.0,61400.0,1.00982825]
[1724404165627,2.55876952,61401.0,61400.0,0.19428879]
[1724404165897,2.88449652,61401.0,61400.0,0.02251258]
[1724404168053,2.85894091,61401.0,61400.0,0.02251258]
[1724404168514,2.85894091,61401.0,61400.0,0.02341898]
[1724404171396,2.85894091,61401.0,61400.0,9.8e-07]
[1724404171902,2.98060873,61401.0,61400.0,9.8e-07]
[1724404172104,2.98065388,61401.0,61400.0,9.8e-07]
[1724404173150,2.85894091,61401.0,61400.0,9.8e-07]
[1724404173351,2.122297,61399.0,61398.0,3.8e-07]
[1724404173551,2.66723832,61399.0,61398.0,3.8e-07]
[1724404174071,2.54549998,61399.0,61398.0,3.8e-07]
[1724404174277,2.54549998,61399.0,61389.0,0.0009064]
[1724404174278,1.796817,61390.0,61389.0,0.0009064]
[1724404174499,2.54703339,61390.0,61389.0,0.0009064]
[1724404175054,2.5725918,61390.0,61389.0,0.0009064]
[1724404175258,2.4995394,61390.0,61389.0,0.0009064]
[1724404175680,1.87834739,61390.0,61389.0,0.0009064]
[1724404175894,1.83627562,61390.0,61389.0,0.0009064]
[1724404176098,1.85027562,61390.0,61389.0,0.0009064]
[1724404176917,1.85927562,61390.0,61389.0,0.0009064]
[1724404177122,1.86733491,61390.0,61389.0,0.0009064]
[1724404177381,1.77865268,61390.0,61389.0,0.0009064]
[1724404177590,2.02231369,61390.0,61389.0,0.0009064]
[1724404177761,2.03431369,61390.0,61389.0,0.0009064]
[1724404179419,2.13173583,61390.0,61389.0,0.0009064]
[1724404179627,1.45580839,61390.0,61389.0,0.0009064]
[1724404179846,1.03002339,61390.0,61389.0,0.1495064]
[1724404180261,0.86602041,61390.0,61389.0,0.1495064]
[1724404181101,0.05155841,61390.0,61389.0,0.22918863]
[1724404181519,0.05155841,61390.0,61389.0,0.2381924]
[1724404181724,0.05155841,61390.0,61389.0,0.7268784]
[1724404181725,0.03955841,61390.0,61389.0,0.7268784]
[1724404181932,0.21145041,61390.0,61389.0,0.15851017]
[1724404182143,0.05570345,61390.0,61389.0,0.15851017]
[1724404182352,0.06670345,61390.0,61389.0,0.15851017]
[1724404182554,0.04555841,61390.0,61389.0,0.15851017]
[1724404182760,0.03455841,61390.0,61389.0,0.15851017]
[1724404183081,0.03855841,61390.0,61389.0,0.15851017]
[1724404183530,0.02955841,61390.0,61389.0,0.15851017]
[1724404183959,0.24727255,61390.0,61389.0,0.15851017]
[1724404184164,0.24557255,61390.0,61389.0,0.15851017]
[1724404184366,0.19375041,61390.0,61389.0,0.15851017]
[1724404184782,0.51953541,61390.0,61389.0,0.15851017]
[1724404184998,0.84532041,61390.0,61389.0,0.15851017]
[1724404185411,0.84532041,61390.0,61389.0,0.1495064]
[1724404186842,0.03085841,61390.0,61389.0,0.1495064]
[1724404187325,0.03085841,61390.0,61389.0,0.32139865]
[1724404187534,0.03085841,61390.0,61389.0,0.15850365]
[1724404189721,0.03085841,61390.0,61389.0,0.16198975]
[1724404193244,0.19375041,61390.0,61389.0,0.16198975]
[1724404195715,0.19375041,61390.0,61389.0,0.1495064]
[1724404196336,0.19375041,61390.0,61389.0,0.1599084]
[1724404197168,0.51953541,61390.0,61389.0,0.1599084]
[1724404198281,0.51953541,61390.0,61389.0,0.1495064]
[1724404198515,0.51953541,61390.0,61389.0,0.15990859]
[1724404200495,0.84532041,61390.0,61389.0,0.1495064]
[1724404200709,0.001,61389.0,61388.0,0.0013264]
[1724404200823,1.240268,61389.0,61388.0,0.0013264]
[1724404202030,1.251268,61389.0,61388.0,0.0013264]
[1724404203272,1.264268,61389.0,61388.0,0.0013264]
[1724404203703,1.253268,61389.0,61388.0,0.0013264]
[1724404204026,1.264268,61389.0,61388.0,0.0013264]
[1724404206430,1.33745271,61389.0,61388.0,0.0013264]
[1724404207057,1.264268,61389.0,61388.0,0.0013264]
[1724404207253,1.33745626,61389.0,61388.0,0.0013264]
[1724404207677,1.264268,61389.0,61388.0,0.0013264]
[1724404208242,1.41365535,61389.0,61388.0,0.0013264]
[1724404208459,1.57763413,61389.0,61388.0,0.0013264]
[1724404208717,1.50444678,61389.0,61388.0,0.0013264]
[1724404209230,1.50143497,61389.0,61388.0,0.0013264]
[1724404209435,1.264268,61389.0,61388.0,0.0013264]
[1724404209762,1.33745895,61389.0,61388.0,0.0013264]
[1724404210840,1.264268,61389.0,61388.0,0.0013264]
[1724404212561,1.34403,61389.0,61388.0,0.0013264]
[1724404213345,1.50285779,61389.0,61388.0,0.0013264]
[1724404213959,1.34403,61389.0,61388.0,0.0013264]
[1724404216255,1.4416142,61389.0,61388.0,0.0013264]
[1724404217259,1.3618522,61389.0,61388.0,0.0013264]
[1724404217464,1.4424392,61389.0,61388.0,0.0013264]
[1724404217647,1.5844392,61389.0,61388.0,0.0013264]
[1724404217878,1.65083378,61389.0,61388.0,0.0013264]
[1724404219017,1.426755,61389.0,61388.0,0.0013264]
[1724404219256,1.44247472,61389.0,61388.0,0.0013264]
[1724404221193,1.344855,61389.0,61388.0,0.0013264]
[1724404223319,1.46688014,61389.0,61388.0,0.0013264]
[1724404226318,1.54218014,61389.0,61388.0,0.0013264]
[1724404226562,1.77275892,61389.0,61388.0,0.0013264]
[1724404226962,1.65073378,61389.0,61388.0,0.0013264]
[1724404227572,1.65373378,61389.0,61388.0,0.0013264]
[1724404229159,2.47131876,61389.0,61388.0,0.0013264]
[1724404229355,2.14452776,61389.0,61388.0,0.0013264]
[1724404229763,2.14552776,61389.0,61388.0,0.0013264]
[1724404230117,2.29005343,61389.0,61388.0,0.0013264]
[1724404230322,2.29105343,61389.0,61388.0,0.0013264]
[1724404230521,2.28905343,61389.0,61388.0,0.0013264]
[1724404230880,2.29005343,61389.0,61388.0,0.0013264]
[1724404231599,2.29205343,61389.0,61388.0,0.0013264]
[1724404231799,2.14552776,61389.0,61388.0,0.0013264]
[1724404232054,2.14352776,61389.0,61388.0,0.0013264]
[1724404232232,2.29005343,61389.0,61388.0,0.0013264]
[1724404232590,2.14352776,61389.0,61388.0,0.0013264]
[1724404233472,2.14552776,61389.0,61388.0,0.0013264]
[1724404234082,1.97654898,61389.0,61388.0,0.0013264]
[1724404234289,1.265093,61389.0,61388.0,0.0013264]
[1724404234469,1.344855,61389.0,61388.0,0.0013264]
[1724404234774,1.46694009,61389.0,61388.0,0.0013264]
[1724404235304,1.344855,61389.0,61388.0,0.0013264]
[1724404236925,1.49967102,61389.0,61388.0,0.0013264]
[1724404237545,1.344855,61389.0,61388.0,0.0013264]
[1724404245603,1.333855,61389.0,61388.0,0.0013264]
[1724404245875,1.320855,61389.0,61388.0,0.0013264]
[1724404246697,1.328855,61389.0,61388.0,0.0013264]
[1724404247412,1.47659123,61389.0,61388.0,0.0013264]
[1724404247542,1.473655,61389.0,61388.0,0.0013264]
[1724404247740,1.64363378,61389.0,61388.0,0.0013264]
[1724404248628,1.64563378,61389.0,61388.0,0.0013264]
[1724404249249,1.97142478,61389.0,61388.0,0.0013264]
[1724404249597,1.64563378,61389.0,61388.0,0.0013264]
[1724404249805,1.97142478,61389.0,61388.0,0.0013264]
[1724404250229,1.64563378,61389.0,61388.0,0.0013264]
[1724404250435,1.80963676,61389.0,61388.0,0.0013264]
[1724404251229,2.13542776,61389.0,61388.0,0.0013264]
[1724404252840,1.80963676,61389.0,61388.0,0.0013264]
[1724404253480,2.13542776,61389.0,61388.0,0.0013264]
[1724404253886,1.80963676,61389.0,61388.0,0.0013264]
[1724404254128,2.13542776,61389.0,61388.0,0.0013264]
[1724404254712,1.80963676,61389.0,61388.0,0.0013264]
[1724404257182,1.64565798,61389.0,61388.0,0.0013264]
[1724404260813,1.56589598,61389.0,61388.0,0.0013264]
[1724404261016,1.49639598,61389.0,61388.0,0.0013264]
[1724404261234,1.49885798,61389.0,61388.0,0.0013264]
[1724404262577,1.49985798,61389.0,61388.0,0.0013264]
[1724404262756,1.49885798,61389.0,61388.0,0.0013264]
[1724404263565,1.50185798,61389.0,61388.0,0.0013264]
[1724404264130,1.258093,61389.0,61388.0,0.0013264]
[1724404264330,1.337855,61389.0,61388.0,0.0013264]
[1724404266267,1.50183378,61389.0,61388.0,0.0013264]
[1724404268225,1.66583676,61389.0,61388.0,0.0013264]
[1724404268414,1.80803676,61389.0,61388.0,0.0013264]
[1724404269185,2.13382776,61389.0,61388.0,0.0013264]
[1724404269803,1.80803676,61389.0,61388.0,0.0013264]
[1724404270607,2.13382776,61389.0,61388.0,0.0013264]
[1724404272476,2.05406576,61389.0,61388.0,0.0013264]
[1724404272683,1.80803676,61389.0,61388.0,0.0013264]
[1724404273702,2.13382776,61389.0,61388.0,0.0013264]
[1724404275485,1.80803676,61389.0,61388.0,0.0013264]
[1724404275939,2.13382776,61389.0,61388.0,0.0013264]
[1724404286452,1.90434898,61389.0,61388.0,0.0013264]
[1724404287715,2.05110183,61389.0,61388.0,0.0013264]
[1724404287931,2.05110035,61389.0,61388.0,0.0013264]
[1724404288133,1.90434898,61389.0,61388.0,0.0013264]
[1724404293183,1.57855798,61389.0,61388.0,0.0013264]
[1724404296233,1.337855,61389.0,61388.0,0.0013264]
[1724404304122,1.583884,61389.0,61388.0,0.0013264]
[1724404304339,1.663646,61389.0,61388.0,0.0013264]
[1724404305942,2.62193098,61389.0,61388.0,4e-07]
[1724404306181,2.46111876,61389.0,61388.0,4e-07]
[1724404306819,2.78690976,61389.0,61388.0,4e-07]
[1724404307025,2.77890976,61389.0,61388.0,4e-07]
[1724404307488,2.79290976,61389.0,61388.0,4e-07]
[1724404307949,2.77290976,61389.0,61388.0,4e-07]
[1724404308359,2.79790976,61389.0,61388.0,4e-07]
[1724404308877,2.78690976,61389.0,61388.0,4e-07]
[1724404309336,2.80090976,61389.0,61388.0,4e-07]
[1724404309541,2.39535676,61389.0,61388.0,4e-07]
[1724404309767,2.47511876,61389.0,61388.0,4e-07]
[1724404311927,2.47511876,61389.0,61388.0,0.0009068]
[1724404312157,2.47511876,61389.0,61388.0,8e-07]
[1724404314261,2.80090976,61389.0,61388.0,8e-07]
[1724404314976,2.79990976,61389.0,61388.0,8e-07]
[1724404315296,2.80090976,61389.0,61388.0,8e-07]
[1724404315712,2.47511876,61389.0,61388.0,8e-07]
[1724404316606,2.80090976,61389.0,61388.0,8e-07]
[1724404320004,2.80090976,61389.0,61376.0,0.05906278]
[1724404320005,1.145489,61377.0,61376.0,0.05906278]
[1724404320222,1.63572505,61377.0,61376.0,0.05906278]
[1724404320451,1.48925398,61377.0,61376.0,0.05906278]
[1724404320662,1.84066887,61377.0,61376.0,0.05906278]
[1724404321417,1.143545,61374.0,61373.0,0.0766]
[1724404321570,1.48730998,61374.0,61373.0,0.0766]
[1724404323097,1.48730998,61374.0,61373.0,0.1379]
[1724404324228,1.49509609,61374.0,61373.0,0.1379]
[1724404331306,1.49509609,61374.0,61357.0,0.0009064]
[1724404331307,1.143678,61367.0,61357.0,0.0009064]
[1724404331522,1.24539558,61367.0,61357.0,0.0009064]
[1724404331781,1.22044,61367.0,61357.0,0.0009064]
[1724404331988,1.22044,61367.0,61366.0,0.153964]
[1724404331989,1.2460024,61367.0,61366.0,0.153964]
[1724404332615,1.1662404,61367.0,61366.0,0.153964]
[1724404333240,1.1752404,61367.0,61366.0,0.153964]
[1724404333441,0.8493324,61367.0,61366.0,0.153964]
[1724404333640,0.8413324,61367.0,61366.0,0.153964]
[1724404334127,0.0265624,61367.0,61366.0,0.153964]
[1724404334336,0.0255624,61367.0,61366.0,0.153964]
[1724404334517,0.0345624,61367.0,61366.0,0.3279596]
[1724404334742,0.0255624,61367.0,61366.0,0.3279596]
[1724404336073,0.0255624,61367.0,61366.0,0.1650036]
[1724404336277,0.0275624,61367.0,61366.0,0.1650036]
[1724404336479,0.0255624,61367.0,61366.0,0.1650036]
[1724404337334,0.0265624,61367.0,61366.0,0.1650036]
[1724404337546,0.0275624,61367.0,61366.0,0.1650036]
[1724404337755,0.0275624,61367.0,61366.0,0.3279596]
[1724404337965,0.0275624,61367.0,61366.0,0.1650036]
[1724404341995,0.0275624,61367.0,61366.0,0.3279596]
[1724404342400,0.0275624,61367.0,61366.0,0.1650036]
[1724404343776,0.0275624,61367.0,61366.0,0.6538726]
[1724404345622,0.0275624,61367.0,61366.0,0.3279596]
[1724404347255,0.0275624,61367.0,61366.0,0.1650036]
[1724404349496,0.1905164,61367.0,61366.0,0.1650036]
[1724404349692,0.5164244,61367.0,61366.0,0.1650036]
[1724404350084,0.61412109,61367.0,61366.0,0.1650036]
[1724404350285,0.5164244,61367.0,61366.0,0.1650036]
[1724404350506,0.61412109,61367.0,61366.0,0.1650036]
[1724404350932,0.5164244,61367.0,61366.0,0.1650036]
[1724404351105,0.61421398,61367.0,61366.0,0.1650036]
[1724404351320,0.63854526,61367.0,61366.0,0.1650036]
[1724404352686,1.07099779,61367.0,61366.0,0.1650036]
[1724404352896,0.94887693,61367.0,61366.0,0.1650036]
[1724404353102,0.94887693,61367.0,61366.0,0.153964]
[1724404353530,0.94787693,61367.0,61366.0,0.153964]
[1724404354132,0.94687693,61367.0,61366.0,0.153964]
[1724404354553,0.94687693,61367.0,61366.0,0.009064]
[1724404356086,0.8403324,61367.0,61366.0,0.009064]
[1724404356658,0.93814464,61367.0,61366.0,0.009064]
[1724404356838,0.93814464,61367.0,61366.0,0.017396]
[1724404357270,0.93814464,61367.0,61366.0,0.009064]
[1724404360007,0.8403324,61367.0,61366.0,0.009064]
[1724404360383,0.93814464,61367.0,61366.0,0.009064]
[1724404361022,0.61223664,61367.0,61366.0,0.009064]
[1724404361462,0.12337464,61367.0,61366.0,0.01762156]
[1724404361665,0.0255624,61367.0,61366.0,0.01762156]
[1724404364512,0.09892775,61367.0,61366.0,0.01762156]
[1724404366672,0.0255624,61367.0,61366.0,0.01762156]
[1724404367053,0.07447173,61367.0,61366.0,0.01762156]
[1724404367256,0.0255624,61367.0,61366.0,0.01762156]
[1724404368438,0.09892884,61367.0,61366.0,0.01762156]
[1724404370503,0.09892884,61367.0,61366.0,0.73285256]
[1724404370504,0.0255624,61367.0,61366.0,0.73285256]
[1724404370694,0.0255624,61367.0,61366.0,1.24576854]
[1724404370917,0.0255624,61367.0,61366.0,1.57168154]
[1724404371117,0.0255624,61367.0,61366.0,1.58954122]
[1724404371317,0.04973676,61376.0,61375.0,0.307532]
[1724404371318,0.000824,61376.0,61375.0,0.307532]
[1724404371428,0.000824,61376.0,61375.0,0.387294]
[1724404371630,0.000824,61376.0,61375.0,0.39583264]
[1724404374955,0.002824,61376.0,61375.0,0.39583264]
[1724404376066,0.002824,61376.0,61375.0,0.15313864]
[1724404379739,0.002824,61376.0,61375.0,0.00853864]
[1724404380648,0.002824,61376.0,61373.0,0.227037]
[1724404380951,0.162954,61367.0,61366.0,0.009064]
[1724404381489,0.488862,61367.0,61366.0,0.009064]
[1724404382030,0.488862,61367.0,61366.0,0.010064]
[1724404382230,0.489862,61367.0,61366.0,0.010064]
[1724404383593,0.490862,61367.0,61366.0,0.012064]
[1724404383798,0.489862,61367.0,61366.0,0.011064]
[1724404384206,0.489862,61367.0,61366.0,0.012064]
[1724404385275,0.488862,61367.0,61366.0,0.009064]
[1724404385481,0.488862,61367.0,61366.0,0.011064]
[1724404385683,0.488862,61367.0,61366.0,0.012064]
[1724404386218,0.81477,61367.0,61366.0,0.012064]
[1724404386606,0.81477,61367.0,61366.0,0.010064]
[1724404387064,0.81477,61367.0,61366.0,0.012064]
[1724404387415,0.81477,61367.0,61366.0,0.011064]
[1724404388024,0.84033145,61367.0,61366.0,0.011064]
[1724404388229,0.84033145,61367.0,61366.0,0.012064]
[1724404388471,1.45127749,61367.0,61366.0,0.012064]
[1724404388857,1.44827749,61367.0,61366.0,0.010064]
[1724404389326,1.44927749,61367.0,61366.0,0.010064]
[1724404389530,1.44827749,61367.0,61366.0,0.010064]
[1724404389683,1.44927749,61367.0,61366.0,0.012064]
[1724404390128,1.45127749,61367.0,61366.0,0.012064]
[1724404390459,1.45127749,61367.0,61366.0,0.009064]
[1724404391003,1.45027749,61367.0,61366.0,0.009064]
[1724404391650,1.31113945,61367.0,61366.0,0.009064]
[1724404392523,1.38439649,61367.0,61366.0,0.009064]
[1724404396073,1.38438773,61367.0,61366.0,0.009064]
[1724404396312,1.05847973,61367.0,61366.0,0.009064]
[1724404396518,1.38438773,61367.0,61366.0,0.009064]
[1724404400558,1.38438773,61367.0,61366.0,0.009064]
[1724404401208,1.05847973,61367.0,61366.0,0.009064]
[1724404404535,1.06147973,61367.0,61366.0,0.009064]
[1724404404769,0.98523145,61367.0,61366.0,0.009064]
[1724404404995,1.05847973,61367.0,61366.0,0.009064]
[1724404405698,1.05847113,61367.0,61366.0,0.009064]
[1724404406366,0.98523145,61367.0,61366.0,0.009064]
[1724404408993,1.08369484,61367.0,61366.0,0.009064]
[1724404409215,0.98523145,61367.0,61366.0,0.009064]
[1724404409690,1.06499345,61367.0,61366.0,0.009064]
[1724404410156,0.84233145,61367.0,61366.0,0.009064]
[1724404410418,0.84233145,61367.0,61366.0,0.075564]
[1724404410419,0.51642345,61367.0,61366.0,0.075564]
[1724404410905,0.51442345,61367.0,61366.0,0.08428796]
[1724404411332,0.51442345,61367.0,61366.0,0.08528796]
[1724404411538,0.51442345,61367.0,61366.0,0.08628796]
[1724404411972,0.51442345,61367.0,61366.0,0.01878796]
[1724404412212,0.65612345,61367.0,61366.0,0.01878796]
[1724404412446,0.65612345,61367.0,61366.0,0.012064]
[1724404412447,0.98203145,61367.0,61366.0,0.012064]
[1724404412674,0.98203145,61367.0,61366.0,0.02078774]